Workbook

Sheet část 1.
A1: Příloha č. 2 zadávací dokumentace
A3: Cenová nabídka - modelový příklad
A5: VZ "Biochemické a imunochemické analytické systémy pro ONN a.s."
A7: Hodnotící kritérium č. 1 - Výše nabídkové ceny za povinné reportované testy v CZK bez DPH za 8 let - 65% váha kritéria
A9: Označení reportovaného testu | C9: CELKEM počet reportovaných testů za všechny lokality/ 8 let | D9: Cena za 1 reportovaný test v (CZK) bez DPH | E9: CENA CELKEM za 8 let (CZK) bez DPH
A10: a1 | B10: Urea | C10: 1090544
A11: a2 | B11: Urea v moči | C11: 4496
A12: a3 | B12: Kreatinin | C12: 1211400
A13: a4 | B13: Kreatinin v moči | C13: 92232
A14: a5 | B14: Cystatin C | C14: 4216
A15: a6 | B15: Kyselina močová | C15: 511344
A16: a7 | B16: Kyselina močová v moči | C16: 1432
A17: a8 | B17: Na+ (Sodík v séru, likvoru a punktátu) | C17: 1137864
A18: a9 | B18: Na+ (Sodík v moči) | C18: 5328
A19: a10 | B19: K+ (Draslík v séru, likvoru a punktátu) | C19: 1152408
A20: a11 | B20: K+ (Draslík v moči) | C20: 5288
A21: a12 | B21: Cl- (Chloridy v séru, likvoru a punktátu) | C21: 1033688
A22: a13 | B22: Cl- (Chloridy v moči) | C22: 4968
A23: a14 | B23: Vápník | C23: 176896
A24: a15 | B24: Vápník v moči | C24: 21352
A25: a16 | B25: Fosfor | C25: 111296
A26: a17 | B26: Fosfor v moči | C26: 9328
A27: a18 | B27: Hořčík | C27: 175440
A28: a19 | B28: Hořčík v moči | C28: 3328
A29: a20 | B29: Železo celkové | C29: 75712
A30: a21 | B30: Vazebná kapacita železa | C30: 39224
A31: a22 | B31: Vitamin B12 | C31: 42616
A32: a23 | B32: Kyselina listová (foláty) | C32: 36280
A33: a24 | B33: Homocystein | C33: 6064
A34: a25 | B34: Bilirubin celkový | C34: 776192
A35: a26 | B35: Bilirubin konjugovaný | C35: 190648
A36: a27 | B36: Bilirubin novorozenecký | C36: 14000
A37: a28 | B37: ALT | C37: 997336
A38: a29 | B38: AST | C38: 947440
A39: a30 | B39: Gamaglutamyltransferáza (GGT) | C39: 586048
A40: a31 | B40: Fosfatáza alkalická (ALP) | C40: 453208
A41: a32 | B41: Laktátdehydrogenáza (LD) v séru, likvoru a punktátu | C41: 62792
A42: a33 | B42: Kreatinkináza (CK) | C42: 174408
A43: a34 | B43: CK-MB mass | C43: 1008
A44: a35 | B44: Myoglobin | C44: 27960
A45: a36 | B45: hs Troponin T nebo I | C45: 70360
A46: a37 | B46: Natriuretické peptidy (NT-proBNP) | C46: 40016
A47: a38 | B47: Amyláza v séru a punktátu | C47: 101768
A48: a39 | B48: Amyláza v moči | C48: 4968
A49: a40 | B49: Pankreatická amyláza v séru | C49: 22680
A50: a41 | B50: Pankreatická amyláza v moči | C50: 416
A51: a42 | B51: Lipáza v séru a punktátu | C51: 63320
A52: a43 | B52: Cholinesterasa | C52: 1720
A53: a44 | B53: Cholesterol celkový v séru a punktátu | C53: 558176
A54: a45 | B54: Cholesterol HDL | C54: 461184
A55: a46 | B55: Cholesterol LDL | C55: 470280
A56: a47 | B56: Triacylglyceroly v séru a punktátu | C56: 517872
A57: a48 | B57: Apolipoprotein A1 | C57: 6608
A58: a49 | B58: Apolipoprotein B | C58: 5984
A59: a50 | B59: Lipoprotein (a) | C59: 584
A60: a51 | B60: Bílkovina celková v séru a punktátu | C60: 271456
A61: a52 | B61: Bílkovina celková v moči | C61: 47248
A62: a53 | B62: Bílkovina celková v likvoru | C62: 3568
A63: a54 | B63: Prealbumin | C63: 5936
A64: a55 | B64: Albumin v séru a puktátu | C64: 120840
A65: a56 | B65: Albumin v moči | C65: 65008
A66: a57 | B66: Albumin v likvoru | C66: 264
A67: a58 | B67: Haptoglobin | C67: 1128
A68: a59 | B68: Transferin | C68: 34944
A69: a60 | B69: Solubilní transferinový receptor | C69: 5912
A70: a61 | B70: C3 složka komplementu | C70: 912
A71: a62 | B71: C4 složka komplementu | C71: 1024
A72: a63 | B72: Beta-2-mikroglobulin | C72: 5728
A73: a64 | B73: IgG v séru | C73: 23912
A74: a65 | B74: IgA v séru | C74: 21392
A75: a66 | B75: IgM | C75: 20784
A76: a67 | B76: IgE | C76: 13528
A77: a68 | B77: C-reaktivní protein | C77: 754928
A78: a69 | B78: Prokalcitonin | C78: 26080
A79: a70 | B79: Interleukin 6 | C79: 1440
A80: a71 | B80: Revmatoidní faktor v séru a punktátu | C80: 27416
A81: a72 | B81: Antistreptolyzin O (ASLO) v séru a punktátu | C81: 21720
A82: a73 | B82: Glukóza v séru, plazmě, likvoru a punktátu | C82: 1749496
A83: a74 | B83: Glukóza v moči | C83: 71784
A84: a75 | B84: Glukóza - hemolyzát | C84: 200640
A85: a76 | B85: Kyselina valproová | C85: 672
A86: a77 | B86: Carbamazepin | C86: 184
A87: a78 | B87: Digoxin | C87: 12872
A88: a79 | B88: Teofylin | C88: 4048
A89: a80 | B89: Gentamycin | C89: 1680
A90: a81 | B90: Vankomycin | C90: 816
A91: a82 | B91: Etanol | C91: 11224
A92: a83 | B92: Tyreotropin (TSH) | C92: 468992
A93: a84 | B93: Trijodtyronin celkový (TT3) | C93: 1032
A94: a85 | B94: Trijodtyronin volný (FT3) | C94: 37000
A95: a86 | B95: Tyroxin volný (FT4) | C95: 199648
A96: a87 | B96: Thyreoglobulin | C96: 2216
A97: a88 | B97: Autoprotilátky proti mikrosomálnímu antigenu (Anti-TPO) | C97: 15416
A98: a89 | B98: Autoprotilátky proti tyreoglobulinu (Anti-TG) | C98: 12464
A99: a90 | B99: Choriogonadotropin (HCG) | C99: 10552
A100: a91 | B100: Folitropin (FSH) | C100: 5128
A101: a92 | B101: Lutropin (LH) | C101: 4560
A102: a93 | B102: Prolaktin | C102: 5648
A103: a94 | B103: Estradiol | C103: 3200
A104: a95 | B104: Progesteron | C104: 3032
A105: a96 | B105: Testosteron celkový | C105: 5472
A106: a97 | B106: Sex hormone binding globulin (SHBG) | C106: 1488
A107: a98 | B107: Kortizol v séru | C107: 5464
A108: a99 | B108: Kortizol v moči | C108: 504
A109: a100 | B109: Spojovací peptid proinzulinu (C-peptid) | C109: 7168
A110: a101 | B110: Prostatický specifický antigen (PSA) | C110: 126872
A111: a102 | B111: Prostatický specifický antigen (PSA) - volný | C111: 34168
A112: a103 | B112: Alfa-1-fetoprotein (AFP) | C112: 9008
A113: a104 | B113: Karcinoembryonalni antigen (CEA) v séru a punktátu | C113: 34640
A114: a105 | B114: Carbohydrate antigen 15-3 | C114: 11696
A115: a106 | B115: Carbohydrate antigen 19-9 | C115: 25456
A116: a107 | B116: Carbohydrate antigen 125 | C116: 9216
A117: a108 | B117: Feritin | C117: 47800
A118: a109 | B118: Parathormon intaktní | C118: 34176
A119: a110 | B119: 25-hydroxyvitamin D | C119: 37376
A120: a111 | B120: Laktát v plazmě | C120: 18888
A121: a112 | B121: Laktát v likvoru, puktátu | C121: 3080
A122: a113 | B122: Amoniak | C122: 624
A123: a114 | B123: Hemoglobin ve stolici | C123: 1240
A124: a115 | B124: Sérové indexy | C124: 1258976
A125: a116 | B125: Anti HAV IgG+IgM | C125: 2704
A126: a117 | B126: Anti HAV IgM | C126: 1072
A127: a118 | B127: HBsAg (Australský antigen) | C127: 5544
A128: a119 | B128: Anti HBs | C128: 4040
A129: a120 | B129: Anti HBc IgG +IgM | C129: 3536
A130: a121 | B130: Anti HBc IgM | C130: 304
A131: a122 | B131: Anti HBc IgM | C131: 304
A132: a123 | B132: HIV-1 (protilátky) | C132: 3560 | E132: =C132*D132 -> 0 | J132: =C132*I132 -> 0
A133: a124 | B133: Ab/Toxoplazma IgG kvant. | C133: 688
A134: a125 | B134: Ab/Toxopl.IgM | C134: 688
A135: a126 | B135: Ab/SARS-COV-2-IgG | C135: 5600
B136: CELKEM povinné testy za všechny lokality v CZK bez DPH/ 8 let* | E136: =MIN(H136,K136,N136) -> 0
B137: CELKEM výše DPH v CZK za 8 let | E137: 0
B138: CELKEM za povinné testy za všechny lokality v CZK s DPH/ 8 let | E138: 0
A140: Poznámka: Tento dokument bude přílohou č. 1 Rámcové kupní smlouvy
A141: * Celková cena za povinné testy za všechny lokality v CZK za 8 let, nesmí překročit předpokládanou hodnotu veřejné zakázky, tj. 220 000 000,- Kč bez DPH v souladu ustanovením článku 7 Výzvy k předložení nabídek a zadávací dokumentaci této veřejné zakázky.
A143: V…...................dne…............
D144: ….....................................................
C145: Podpis osoby oprávněné jednat jménem účastníka

Sheet část 2.
A1: Příloha č. 2 zadávací dokumentace
A3: Cenová nabídka - modelový příklad
A5: VZ "Biochemické a imunochemické analytické systémy pro ONN a.s."
A7: Hodnotící kritérium č. 2 - Výše nabídkové ceny za nepovinné reportované testy v CZK bez DPH za 8 let - 10% váha kritéria
A8: Nepovinné reportované testy | C8: CELKEM počet vzorků za všechny lokality/ 8 let | D8: Substituční cena za 1 reportovaný test v kč bez DPH * | E8: Cena za 1 reportovaný test v (CZK) bez DPH | F8: CENA CELKEM za 8 let (CZK) bez DPH | G8: Ano - 1 bod/Ne -0 bodů
A9: b1 | B9: ELF score (Enhanced Liver Fibrosis) | C9: 1032 | F9: =C9*D9 -> 0
A10: b2 | B10: Eozinofilní kationový protein (ECP) | C10: 2976 | F10: =C10*D10 -> 0
A11: b3 | B11: Anti-CCP | C11: 2600 | F11: 0
A12: b4 | B12: TSI (TSH receptor Stimulating Imunoglobulins) | C12: 2912 | F12: 0
A13: b5 | B13: Preeklampsie | C13: 1184 | F13: 0
A14: b6 | B14: HE4 (Human Epididymal protein 4) | C14: 840 | F14: 0
A15: b7 | B15: Carbohydrate antigen 125* | C15: 840 | F15: 0
A16: b8 | B16: ROMA score | C16: 816 | F16: 0
A17: b9 | B17: SCC antigen | C17: 168 | F17: 0
A18: b10 | B18: Cytokeratin fragment 21-1 (CYFRA) v séru a punktátu | C18: 3040 | F18: 0
A19: b11 | B19: Carbohydrate antigen 72-4 | C19: 9216 | F19: 0
A20: b12 | B20: proPSA | C20: 624 | F20: 0
A21: b13 | B21: NSE | C21: 2784 | F21: 0
A22: b14 | B22: ALP-kostní (osteáza) | C22: 184 | F22: 0
A23: b15 | B23: Osteokalcin | C23: 16504 | F23: 0
A24: b16 | B24: Beta-CrossLaps | C24: 14832 | F24: 0
A25: b17 | B25: Prokolagen typ I (Propeptid prokolagenu I) | C25: 4864 | F25: 0
A26: b18 | B26: Adrenokortikotropin (ACTH) | C26: 1176 | F26: 0
A27: b19 | B27: Ab/Treponema screen | C27: 6880 | F27: 0
A28: b20 | B28: CMV avidita | C28: 80 | F28: 0
A29: b21 | B29: Specifické IgE proti: trávy I (směs) | C29: 832 | F29: 0
A30: b22 | B30: Specifické IgE proti: směs roztoči | C30: 1896 | F30: 0
A31: b23 | B31: Specifické IgE proti: směs plísně | C31: 272 | F31: 0
A32: b24 | B32: Specifické IgE proti: směs stromy 9 | C32: 864 | F32: 0
A33: b25 | B33: Specifické IgE proti: kočka - srst | C33: 408 | F33: 0
A34: b26 | B34: Specifické IgE proti: pes - epitelie | C34: 344 | F34: 0
A35: b27 | B35: Specifické IgE proti: vaječný bílek | C35: 488 | F35: 0
A36: b28 | B36: Specifické IgE proti: mléko kravské | C36: 1096 | F36: 0
A37: b29 | B37: Specifické IgE proti: mouka pšeničná | C37: 688 | F37: 0
A38: b30 | B38: Specifické IgE proti: vaječný žloutek | C38: 312 | F38: 0
A39: b31 | B39: Specifické IgE proti: gluten - lepek | C39: 640 | F39: 0
A40: b32 | B40: Specifické IgE proti: včela medonosná | C40: 240 | F40: 0
A41: b33 | B41: Specifické IgE proti: vosa obecná | C41: 272 | F41: 0
A42: b34 | B42: Specifické IgE proti: Aspergillus fumigatus | C42: 136 | F42: 0
A43: b35 | B43: Specifické IgE proti: Alternaria tenui | C43: 272 | F43: 0
A44: b36 | B44: Specifické IgE proti: pyl pelyněk černobýl (Artemisia vulgaris) | C44: 96 | F44: 0
A45: b37 | B45: HCV (Ag/Ab) | C45: 4088 | F45: 0
A46: b38 | B46: Ab/CMV IgG kvant. | C46: 1720 | F46: 0
A47: b39 | B47: Ab/CMV Igm. | C47: 1720 | F47: 0
C48: CELKEM za nepovinné testy za všechny lokality v CZK bez DPH/ 8 let | G48: =MIN(I48,L48,O48) -> 0
C49: CELKEM výše DPH v CZK za 8 let | G49: 0
C50: CELKEM za nepovinné testy za všechny lokality v CZK s DPH/ 8 let | G50: 0
A52: * Carbohydrate antigen 125 - tento test se používá v rámci gynekolického vyšetření v kombinaci s testem HE4 (Human Epididymal protein 4). Zadavatel požaduje aby tyto dva reporotvané testy byly provedeny na shodném analyzátoru k získání validních výsledků.
A53: Substituční cena reportovaného testu* - v případě, že účastník nemá požadovaný reportovaný test ve svém portfoliu, vyplní NE. Zadavatel hodnoty substituční ceny reportovaného testu doplní před hodnocením.
A54: Za každý účastníkem nabídnutý nepovinný reportovaný test (vyplní ANO), zadavatel v rámci hodnocení přiřadí účastníkovi jeden (1) bod. Celkem je možné v rámci dílčího kritéria č. 2 získat celkem 36 bodů v případě, že budou v rámci nabídky účastníka vyplněny/nabídnuty položky č. b1 až b36.
A55: Poznámka: Tento dokument bude přílohou č. 1 Rámcové kupní smlouvy
A57: V…...................dne…............
F58: ….....................................................
F59: Podpis osoby oprávněné jednat jménem účastníka

Sheet Specifikace reportovaných testů
A1: Příloha č. 2 zadávací dokumentace
A2: Účastník je povinen v Seznamu metod včetně ocenění vyplnit příslušné slupce (označeno žlutou barvou).
A3: Povinné reportované testy
A4: Označení reportovaného testu | B4: Pracoviště Náchod | C4: Frekvence IKK | D4: Hlavní modul | E4: Záložní (Statim modul) | F4: Q report. testů | G4: Statim | H4: Pracoviště Rychnov n/K | I4: Frekvence IKK | J4: Hlavní modul | K4: Záložní modul | L4: Q report. testů | M4: Statim | N4: Pracoviště Broumov | O4: Frekvence IKK | P4: Q report. testů | Q4: Statim | R4: Pracoviště Jaroměř | S4: Frekvence IKK | T4: Q report. testů | U4: Statim | V4: Pracoviště Opočno | W4: Frekvence IKK | X4: Q report. testů | Y4: Statim | Z4: CELKEM počet vzorků za všechny lokality/ 1 rok | AA4: Celkem počet reportovaných testů za všechny lokality/ 8 let | AB4: délka trvání vyšetření Statim | AC4: možné velikosti balení/počet testů | AD4: pipetovaný objem vzorku (ul) | AE4: stabilita reagencie na palubě analyzátoru (dny) | AF4: doporučený interval kalibrace, stabilita kalibrace (dny) | AG4: reagencie připravené k použití (ANO/NE) | AH4: kalibrační materál připravený k použití (ANO/NE) | AI4: kontrolní materiál připravený k použití (ANO/NE) | AJ4: reagencie označené RFID (ANO/NE) | AK4: kalibrační materál označený RFID (ANO/NE) | AL4: kontrolní materiál označený RFID (ANO/NE)
A5: Urea | B5: ANO | C5: 1x denně 2 hladiny na všech provozovaných analyzátorech | D5: ANO | E5: ANO | F5: 61129 | G5: ANO | H5: ANO | I5: 365 | J5: ANO | K5: ANO | L5: 37971 | M5: ANO | N5: ANO | O5: 1x denně 2 hladiny | P5: 22668 | Q5: ANO | R5: ANO | S5: Po - Pa, 1x denně 2 hladiny | T5: 8636 | U5: ANO | V5: ANO | W5: Po - Pa, 1x denně 2 hladiny | X5: 5914 | Y5: ANO | Z5: =F5+L5+P5+T5+X5 -> 136318 | AA5: =Z5*8 -> 1090544
A6: Urea v moči | B6: ANO | C6: 1x denně 2 hladiny na všech provozovaných analyzátorech | D6: ANO | E6: ANO | F6: 47 | G6: ANO | H6: ANO | I6: 365 | J6: ANO | L6: 440 | M6: ANO | N6: ANO | O6: 1x denně 2 hladiny | P6: 9 | Q6: ANO | U6: ANO | V6: ANO | W6: Po - Pa, 1x denně 2 hladiny | X6: 66 | Y6: ANO | Z6: 562 | AA6: =Z6*8 -> 4496
A7: Kreatinin | B7: ANO | C7: 1x denně 2 hladiny na všech provozovaných analyzátorech | D7: ANO | E7: ANO | F7: 66180 | G7: ANO | H7: ANO | I7: 365 | J7: ANO | K7: ANO | L7: 42724 | M7: ANO | N7: ANO | O7: 1x denně 2 hladiny | P7: 24003 | Q7: ANO | R7: ANO | S7: Po - Pa, 1x denně 2 hladiny | T7: 9974 | U7: ANO | V7: ANO | W7: Po - Pa, 1x denně 2 hladiny | X7: 8544 | Y7: ANO | Z7: 151425 | AA7: 1211400
A8: Kreatinin v moči | B8: ANO | C8: 1x denně 2 hladiny na všech provozovaných analyzátorech | D8: ANO | E8: ANO | F8: 5385 | G8: ANO | H8: ANO | I8: 365 | J8: ANO | L8: 2526 | M8: ANO | N8: ANO | O8: 1x denně 2 hladiny | P8: 325 | Q8: ANO | R8: ANO | S8: Po - Pa, 1x denně 2 hladiny | T8: 37 | U8: ANO | V8: ANO | W8: Po - Pa, 1x denně 2 hladiny | X8: 3256 | Y8: ANO | Z8: 11529 | AA8: 92232
A9: Cystatin C | H9: ANO | I9: pracovní dny | J9: ANO | L9: 527 | Z9: 527 | AA9: 4216
A10: Kyselina močová | B10: ANO | C10: 1x denně 2 hladiny na všech provozovaných analyzátorech | D10: ANO | E10: ANO | F10: 23450 | G10: ANO | H10: ANO | I10: 365 | J10: ANO | K10: ANO | L10: 17271 | M10: ANO | N10: ANO | O10: 1x denně 2 hladiny | P10: 10695 | Q10: ANO | R10: ANO | S10: Po - Pa, 1x denně 2 hladiny | T10: 5994 | U10: ANO | V10: ANO | W10: Po - Pa, 1x denně 2 hladiny | X10: 6508 | Y10: ANO | Z10: 63918 | AA10: 511344
A11: Kyselina močová v moči | B11: ANO | C11: 1x denně 2 hladiny na všech provozovaných analyzátorech | D11: ANO | E11: ANO | F11: 89 | G11: ANO | H11: ANO | J11: ANO | M11: ANO | N11: ANO | O11: 1x denně 2 hladiny | P11: 26 | Q11: ANO | V11: ANO | W11: Po - Pa, 1x denně 2 hladiny | X11: 64 | Y11: ANO | Z11: 179 | AA11: 1432
A12: Na+ (Sodík v séru, likvoru a punktátu) | B12: ANO | C12: 1x denně 2 hladiny na všech provozovaných analyzátorech | D12: ANO | E12: ANO | F12: 62799 | G12: ANO | H12: ANO | I12: 365 | J12: ANO | K12: ANO | L12: 39163 | M12: ANO | N12: ANO | O12: 1x denně 2 hladiny | P12: 25076 | Q12: ANO | R12: ANO | S12: Po - Pa, 1x denně 2 hladiny | T12: 9717 | U12: ANO | V12: ANO | W12: Po - Pa, 1x denně 2 hladiny | X12: 5478 | Y12: ANO | Z12: 142233 | AA12: 1137864
A13: Na+ (Sodík v moči) | B13: ANO | C13: 1x denně 2 hladiny na všech provozovaných analyzátorech | D13: ANO | E13: ANO | F13: 75 | G13: ANO | H13: ANO | I13: 365 | J13: ANO | K13: ANO | L13: 447 | M13: ANO | N13: ANO | O13: 1x denně 2 hladiny | P13: 63 | Q13: ANO | R13: ANO | S13: Po - Pa, 1x denně 2 hladiny | T13: 11 | U13: ANO | V13: ANO | W13: Po - Pa, 1x denně 2 hladiny | X13: 70 | Y13: ANO | Z13: 666 | AA13: 5328
A14: K+ (Draslík v séru, likvoru a punktátu) | B14: ANO | C14: 1x denně 2 hladiny na všech provozovaných analyzátorech | D14: ANO | E14: ANO | F14: 62799 | G14: ANO | H14: ANO | I14: 365 | J14: ANO | K14: ANO | L14: 40911 | M14: ANO | N14: ANO | O14: 1x denně 2 hladiny | P14: 25076 | Q14: ANO | R14: ANO | S14: Po - Pa, 1x denně 2 hladiny | T14: 9715 | U14: ANO | V14: ANO | W14: Po - Pa, 1x denně 2 hladiny | X14: 5550 | Y14: ANO | Z14: 144051 | AA14: 1152408
A15: K+ (Draslík v moči) | B15: ANO | C15: 1x denně 2 hladiny na všech provozovaných analyzátorech | D15: ANO | E15: ANO | F15: 75 | G15: ANO | H15: ANO | I15: 365 | J15: ANO | K15: ANO | L15: 442 | M15: ANO | N15: ANO | O15: 1x denně 2 hladiny | P15: 63 | Q15: ANO | R15: ANO | S15: Po - Pa, 1x denně 2 hladiny | T15: 11 | U15: ANO | V15: ANO | W15: Po - Pa, 1x denně 2 hladiny | X15: 70 | Y15: ANO | Z15: 661 | AA15: 5288
A16: Cl- (Chloridy v séru, likvoru a punktátu) | B16: ANO | C16: 1x denně 2 hladiny na všech provozovaných analyzátorech | D16: ANO | E16: ANO | F16: 63124 | G16: ANO | H16: ANO | I16: 365 | J16: ANO | K16: ANO | L16: 25990 | M16: ANO | N16: ANO | O16: 1x denně 2 hladiny | P16: 25073 | Q16: ANO | R16: ANO | S16: Po - Pa, 1x denně 2 hladiny | T16: 9715 | U16: ANO | V16: ANO | W16: Po - Pa, 1x denně 2 hladiny | X16: 5309 | Y16: ANO | Z16: 129211 | AA16: 1033688
A17: Cl- (Chloridy v moči) | B17: ANO | C17: 1x denně 2 hladiny na všech provozovaných analyzátorech | D17: ANO | E17: ANO | F17: 45 | G17: ANO | H17: ANO | I17: 365 | J17: ANO | K17: ANO | L17: 433 | M17: ANO | N17: ANO | O17: 1x denně 2 hladiny | P17: 63 | Q17: ANO | R17: ANO | S17: Po - Pa, 1x denně 2 hladiny | T17: 11 | U17: ANO | V17: ANO | W17: Po - Pa, 1x denně 2 hladiny | X17: 69 | Y17: ANO | Z17: 621 | AA17: 4968
A18: Vápník | B18: ANO | C18: 1x denně 2 hladiny na všech provozovaných analyzátorech | D18: ANO | E18: ANO | F18: 12491 | G18: ANO | H18: ANO | I18: 365 | J18: ANO | K18: ANO | L18: 4718 | M18: ANO | N18: ANO | O18: 1x denně 2 hladiny | P18: 2330 | Q18: ANO | R18: ANO | S18: Po - Pa, 1x denně 2 hladiny | T18: 1577 | U18: ANO | V18: ANO | W18: Po - Pa, 1x denně 2 hladiny | X18: 996 | Y18: ANO | Z18: 22112 | AA18: 176896
A19: Vápník v moči | B19: ANO | C19: 1x denně 2 hladiny na všech provozovaných analyzátorech | D19: ANO | E19: ANO | F19: 1621 | G19: ANO | H19: ANO | I19: 365 | J19: ANO | L19: 506 | M19: ANO | N19: ANO | O19: 1x denně 2 hladiny | P19: 386 | Q19: ANO | R19: ANO | S19: Po - Pa, 1x denně 2 hladiny | T19: 68 | U19: ANO | V19: ANO | W19: Po - Pa, 1x denně 2 hladiny | X19: 88 | Y19: ANO | Z19: 2669 | AA19: 21352
A20: Fosfor | B20: ANO | C20: 1x denně 2 hladiny na všech provozovaných analyzátorech | D20: ANO | E20: ANO | F20: 8041 | G20: ANO | H20: ANO | I20: 365 | J20: ANO | K20: ANO | L20: 3362 | M20: ANO | N20: ANO | O20: 1x denně 2 hladiny | P20: 1787 | Q20: ANO | R20: ANO | S20: Po - Pa, 1x denně 2 hladiny | T20: 407 | U20: ANO | V20: ANO | W20: Po - Pa, 1x denně 2 hladiny | X20: 315 | Y20: ANO | Z20: 13912 | AA20: 111296
A21: Fosfor v moči | B21: ANO | C21: 1x denně 2 hladiny na všech provozovaných analyzátorech | D21: ANO | E21: ANO | F21: 211 | G21: ANO | I21: 365 | J21: ANO | L21: 442 | M21: ANO | N21: ANO | O21: 1x denně 2 hladiny | P21: 382 | Q21: ANO | R21: ANO | S21: Po - Pa, 1x denně 2 hladiny | T21: 53 | U21: ANO | V21: ANO | W21: Po - Pa, 1x denně 2 hladiny | X21: 78 | Y21: ANO | Z21: 1166 | AA21: 9328
A22: Hořčík | B22: ANO | C22: 1x denně 2 hladiny na všech provozovaných analyzátorech | D22: ANO | E22: ANO | F22: 5655 | G22: ANO | H22: ANO | I22: 365 | J22: ANO | K22: ANO | L22: 3884 | M22: ANO | N22: ANO | O22: 1x denně 2 hladiny | P22: 10972 | Q22: ANO | R22: ANO | S22: Po - Pa, 1x denně 2 hladiny | T22: 1203 | U22: ANO | V22: ANO | W22: Po - Pa, 1x denně 2 hladiny | X22: 216 | Y22: ANO | Z22: 21930 | AA22: 175440
A23: Hořčík v moči | B23: ANO | C23: 1x denně 2 hladiny na všech provozovaných analyzátorech | D23: ANO | E23: ANO | F23: 91 | G23: ANO | I23: 365 | J23: ANO | L23: 233 | M23: ANO | N23: ANO | O23: 1x denně 2 hladiny | P23: 92 | Q23: ANO | Z23: 416 | AA23: 3328
A24: Železo celkové | B24: ANO | C24: Po - Pa, 1x denně 2 hladiny na 1 provozovaném analyzátoru | D24: ANO | F24: 4094 | H24: ANO | I24: pracovní dny | J24: ANO | L24: 2440 | N24: ANO | O24: 1x denně 2 hladiny | P24: 1123 | Q24: ANO | R24: ANO | S24: Po - Pa, 1x denně 2 hladiny | T24: 1364 | U24: ANO | V24: ANO | W24: Po - Pa, 1x denně 2 hladiny | X24: 443 | Y24: ANO | Z24: 9464 | AA24: 75712
A25: Vazebná kapacita železa | B25: ANO | C25: Po - Pa, 1x denně 2 hladiny na 1 provozovaném analyzátoru | D25: ANO | F25: 2378 | H25: ANO | I25: pracovní dny | J25: ANO | L25: 1550 | N25: ANO | O25: 1x denně 2 hladiny | P25: 511 | R25: ANO | S25: Po - Pa, 1x denně 2 hladiny | T25: 311 | U25: ANO | V25: ANO | W25: Po - Pa, 1x denně 2 hladiny | X25: 153 | Y25: ANO | Z25: 4903 | AA25: 39224
A26: Vitamin B12 | B26: ANO | C26: Po - Pa, 1x denně 2 hladiny na 1 provozovaném analyzátoru | D26: ANO | F26: 3840 | H26: ANO | I26: pracovní dny | J26: ANO | L26: 1487 | Z26: 5327 | AA26: 42616
A27: Kyselina listová (foláty) | B27: ANO | C27: Po - Pa, 1x denně 2 hladiny na 1 provozovaném analyzátoru | D27: ANO | F27: 3342 | H27: ANO | I27: pracovní dny | J27: ANO | L27: 1193 | Z27: 4535 | AA27: 36280
A28: Homocystein | B28: ANO | C28: Po - Pa, 1x denně 2 hladiny na 1 provozovaném analyzátoru | D28: ANO | F28: 373 | H28: ANO | I28: pracovní dny | J28: ANO | L28: 385 | M28: ANO | Z28: 758 | AA28: 6064
A29: Bilirubin celkový | B29: ANO | C29: 1x denně 2 hladiny na všech provozovaných analyzátorech | D29: ANO | E29: ANO | F29: 43273 | G29: ANO | H29: ANO | I29: 365 | J29: ANO | K29: ANO | L29: 23187 | M29: ANO | N29: ANO | O29: 1x denně 2 hladiny | P29: 19305 | Q29: ANO | R29: ANO | S29: Po - Pa, 1x denně 2 hladiny | T29: 6645 | U29: ANO | V29: ANO | W29: Po - Pa, 1x denně 2 hladiny | X29: 4614 | Y29: ANO | Z29: 97024 | AA29: 776192
A30: Bilirubin konjugovaný | B30: ANO | C30: 1x denně 2 hladiny na všech provozovaných analyzátorech | D30: ANO | E30: ANO | F30: 12490 | G30: ANO | H30: ANO | I30: 365 | J30: ANO | K30: ANO | L30: 4201 | M30: ANO | N30: ANO | O30: 1x denně 2 hladiny | P30: 3144 | Q30: ANO | R30: ANO | S30: Po - Pa, 1x denně 2 hladiny | T30: 2044 | U30: ANO | V30: ANO | W30: Po - Pa, 1x denně 2 hladiny | X30: 1952 | Y30: ANO | Z30: 23831 | AA30: 190648
A31: Bilirubin novorozenecký | B31: ANO | C31: 1x denně 2 hladiny na všech provozovaných analyzátorech | D31: ANO | E31: ANO | F31: 1060 | G31: ANO | H31: ANO | I31: 365 | J31: ANO | K31: ANO | L31: 690 | M31: ANO | Z31: 1750 | AA31: 14000
A32: ALT | B32: ANO | C32: 1x denně 2 hladiny na všech provozovaných analyzátorech | D32: ANO | E32: ANO | F32: 52624 | G32: ANO | H32: ANO | I32: 365 | J32: ANO | K32: ANO | L32: 35393 | M32: ANO | N32: ANO | O32: 1x denně 2 hladiny | P32: 20869 | Q32: ANO | R32: ANO | S32: Po - Pa, 1x denně 2 hladiny | T32: 8022 | U32: ANO | V32: ANO | W32: Po - Pa, 1x denně 2 hladiny | X32: 7759 | Y32: ANO | Z32: 124667 | AA32: 997336
A33: AST | B33: ANO | C33: 1x denně 2 hladiny na všech provozovaných analyzátorech | D33: ANO | E33: ANO | F33: 49606 | G33: ANO | H33: ANO | I33: 365 | J33: ANO | K33: ANO | L33: 33187 | M33: ANO | N33: ANO | O33: 1x denně 2 hladiny | P33: 20742 | Q33: ANO | R33: ANO | S33: Po - Pa, 1x denně 2 hladiny | T33: 7894 | U33: ANO | V33: ANO | W33: Po - Pa, 1x denně 2 hladiny | X33: 7001 | Y33: ANO | Z33: 118430 | AA33: 947440
A34: Gamaglutamyltransferáza (GGT) | B34: ANO | C34: 1x denně 2 hladiny na všech provozovaných analyzátorech | D34: ANO | E34: ANO | F34: 34291 | G34: ANO | H34: ANO | I34: 365 | J34: ANO | K34: ANO | L34: 16169 | M34: ANO | N34: ANO | O34: 1x denně 2 hladiny | P34: 13922 | Q34: ANO | R34: ANO | S34: Po - Pa, 1x denně 2 hladiny | T34: 4717 | U34: ANO | V34: ANO | W34: Po - Pa, 1x denně 2 hladiny | X34: 4157 | Y34: ANO | Z34: 73256 | AA34: 586048
A35: Fosfatáza alkalická (ALP) | B35: ANO | C35: 1x denně 2 hladiny na všech provozovaných analyzátorech | D35: ANO | E35: ANO | F35: 25989 | G35: ANO | H35: ANO | I35: 365 | J35: ANO | K35: ANO | L35: 13019 | M35: ANO | N35: ANO | O35: 1x denně 2 hladiny | P35: 11614 | Q35: ANO | R35: ANO | S35: Po - Pa, 1x denně 2 hladiny | T35: 3420 | U35: ANO | V35: ANO | W35: Po - Pa, 1x denně 2 hladiny | X35: 2609 | Y35: ANO | Z35: 56651 | AA35: 453208
A36: Laktátdehydrogenáza (LD) v séru, likvoru a punktátu | B36: ANO | C36: 1x denně 2 hladiny na všech provozovaných analyzátorech | D36: ANO | E36: ANO | F36: 3348 | G36: ANO | H36: ANO | I36: 365 | J36: ANO | L36: 1119 | M36: ANO | N36: ANO | O36: 1x denně 2 hladiny | P36: 3171 | Q36: ANO | V36: ANO | W36: Po - Pa, 1x denně 2 hladiny | X36: 211 | Y36: ANO | Z36: 7849 | AA36: 62792
A37: Kreatinkináza (CK) | B37: ANO | C37: 1x denně 2 hladiny na všech provozovaných analyzátorech | D37: ANO | E37: ANO | F37: 8186 | G37: ANO | H37: ANO | I37: 365 | J37: ANO | K37: ANO | L37: 5375 | M37: ANO | N37: ANO | O37: 1x denně 2 hladiny | P37: 6020 | Q37: ANO | R37: ANO | S37: Po - Pa, 1x denně 2 hladiny | T37: 1734 | U37: ANO | V37: ANO | W37: Po - Pa, 1x denně 2 hladiny | X37: 486 | Y37: ANO | Z37: =F37+L37+P37+T37+X37 -> 21801 | AA37: 174408
A38: CK-MB mass | H38: ANO | I38: 365 | J38: ANO | L38: 126 | Z38: 126 | AA38: 1008
A39: Myoglobin | B39: ANO | C39: 1x denně 2 hladiny na všech provozovaných analyzátorech | D39: ANO | E39: ANO | F39: 2707 | G39: ANO | H39: ANO | I39: 365 | J39: ANO | K39: ANO | L39: 383 | M39: ANO | N39: ANO | O39: 1x denně 2 hladiny | P39: 405 | Q39: ANO | Z39: 3495 | AA39: 27960
A40: hs Troponin T nebo I | B40: ANO | C40: 1x denně 2 hladiny na všech provozovaných analyzátorech | D40: ANO | E40: ANO | F40: 4315 | G40: ANO | I40: 365 | J40: ANO | K40: ANO | L40: 2402 | M40: ANO | N40: ANO | O40: 1x denně 2 hladiny | P40: 2055 | Q40: ANO | V40: ANO | W40: Po - Pa, 1x denně 2 hladiny | X40: 23 | Z40: 8795 | AA40: 70360
A41: Natriuretické peptidy (NT-proBNP) | B41: ANO | C41: 1x denně 2 hladiny na všech provozovaných analyzátorech | D41: ANO | E41: ANO | F41: 1179 | G41: ANO | H41: ANO | I41: 365 | J41: ANO | K41: ANO | L41: 1819 | M41: ANO | N41: ANO | O41: 1x denně 2 hladiny | P41: 2004 | Q41: ANO | Z41: 5002 | AA41: 40016
A42: Amyláza v séru a punktátu | B42: ANO | C42: 1x denně 2 hladiny na všech provozovaných analyzátorech | D42: ANO | E42: ANO | F42: 6563 | G42: ANO | H42: ANO | I42: 365 | J42: ANO | K42: ANO | L42: 3495 | M42: ANO | N42: ANO | O42: 1x denně 2 hladiny | P42: 1528 | Q42: ANO | R42: ANO | S42: Po - Pa, 1x denně 2 hladiny | T42: 800 | U42: ANO | V42: ANO | W42: Po - Pa, 1x denně 2 hladiny | X42: 335 | Y42: ANO | Z42: 12721 | AA42: 101768
A43: Amyláza v moči | B43: ANO | C43: 1x denně 2 hladiny na všech provozovaných analyzátorech | D43: ANO | E43: ANO | F43: 84 | G43: ANO | H43: ANO | I43: 365 | J43: ANO | L43: 120 | M43: ANO | N43: ANO | O43: 1x denně 2 hladiny | P43: 318 | Q43: ANO | R43: ANO | S43: Po - Pa, 1x denně 2 hladiny | T43: 54 | U43: ANO | V43: ANO | W43: Po - Pa, 1x denně 2 hladiny | X43: 45 | Y43: ANO | Z43: 621 | AA43: 4968
A44: Pankreatická amyláza v séru | H44: ANO | I44: 365 | J44: ANO | L44: 2835 | M44: ANO | Z44: 2835 | AA44: 22680
A45: Pankreatická amyláza v moči | H45: ANO | I45: 365 | J45: ANO | L45: 52 | M45: ANO | Z45: 52 | AA45: 416
A46: Lipáza v séru a punktátu | B46: ANO | C46: 1x denně 2 hladiny na všech provozovaných analyzátorech | D46: ANO | E46: ANO | F46: 4698 | G46: ANO | H46: ANO | I46: 365 | J46: ANO | L46: 3217 | M46: ANO | Z46: 7915 | AA46: 63320
A47: Cholinesterasa | H47: ANO | I47: 365 | J47: ANO | L47: 215 | M47: ANO | Z47: 215 | AA47: 1720
A48: Cholesterol celkový v séru a punktátu | B48: ANO | C48: 1x denně 2 hladiny na všech provozovaných analyzátorech | D48: ANO | E48: ANO | F48: 24561 | G48: ANO | H48: ANO | I48: 365 | J48: ANO | K48: ANO | L48: 18748 | M48: ANO | N48: ANO | O48: 1x denně 2 hladiny | P48: 12910 | Q48: ANO | R48: ANO | S48: Po - Pa, 1x denně 2 hladiny | T48: 6494 | U48: ANO | V48: ANO | W48: Po - Pa, 1x denně 2 hladiny | X48: 7059 | Y48: ANO | Z48: 69772 | AA48: 558176
A49: Cholesterol HDL | B49: ANO | C49: 1x denně 2 hladiny na všech provozovaných analyzátorech | D49: ANO | E49: ANO | F49: 19705 | G49: ANO | H49: ANO | I49: 365 | J49: ANO | K49: ANO | L49: 15700 | N49: ANO | O49: 1x denně 2 hladiny | P49: 9824 | Q49: ANO | R49: ANO | S49: Po - Pa, 1x denně 2 hladiny | T49: 5844 | U49: ANO | V49: ANO | W49: Po - Pa, 1x denně 2 hladiny | X49: 6575 | Y49: ANO | Z49: 57648 | AA49: 461184
A50: Cholesterol LDL | B50: ANO | C50: 1x denně 2 hladiny na všech provozovaných analyzátorech | D50: ANO | E50: ANO | F50: 20377 | G50: ANO | H50: ANO | I50: 365 | J50: ANO | K50: ANO | L50: 16257 | N50: ANO | O50: 1x denně 2 hladiny | P50: 9840 | Q50: ANO | R50: ANO | S50: Po - Pa, 1x denně 2 hladiny | T50: 5849 | U50: ANO | V50: ANO | W50: Po - Pa, 1x denně 2 hladiny | X50: 6462 | Y50: ANO | Z50: 58785 | AA50: 470280
A51: Triacylglyceroly v séru a punktátu | B51: ANO | C51: 1x denně 2 hladiny na všech provozovaných analyzátorech | D51: ANO | E51: ANO | F51: 22940 | G51: ANO | H51: ANO | I51: 365 | J51: ANO | K51: ANO | L51: 16461 | M51: ANO | N51: ANO | O51: 1x denně 2 hladiny | P51: 12195 | Q51: ANO | R51: ANO | S51: Po - Pa, 1x denně 2 hladiny | T51: 6146 | U51: ANO | V51: ANO | W51: Po - Pa, 1x denně 2 hladiny | X51: 6992 | Y51: ANO | Z51: 64734 | AA51: 517872
A52: Apolipoprotein A1 | B52: ANO | C52: Po - Pa, 1x denně 2 hladiny na 1 provozovaném analyzátoru | D52: ANO | F52: 359 | H52: ANO | I52: pracovní dny | J52: ANO | L52: 467 | Z52: 826 | AA52: 6608
A53: Apolipoprotein B | B53: ANO | C53: Po - Pa, 1x denně 2 hladiny na 1 provozovaném analyzátoru | D53: ANO | F53: 280 | H53: ANO | I53: pracovní dny | J53: ANO | L53: 468 | Z53: 748 | AA53: 5984
A54: Lipoprotein (a) | H54: ANO | I54: pracovní dny | J54: ANO | L54: 73 | Z54: 73 | AA54: 584
A55: Bílkovina celková v séru a punktátu | B55: ANO | C55: 1x denně 2 hladiny na všech provozovaných analyzátorech | D55: ANO | E55: ANO | F55: 19228 | G55: ANO | H55: ANO | I55: 365 | J55: ANO | K55: ANO | L55: 6850 | M55: ANO | N55: ANO | O55: 1x denně 2 hladiny | P55: 5236 | Q55: ANO | R55: ANO | S55: Po - Pa, 1x denně 2 hladiny | T55: 2248 | U55: ANO | V55: ANO | W55: Po - Pa, 1x denně 2 hladiny | X55: 370 | Y55: ANO | Z55: 33932 | AA55: 271456
A56: Bílkovina celková v moči | B56: ANO | C56: 1x denně 2 hladiny na všech provozovaných analyzátorech | D56: ANO | E56: ANO | F56: 1428 | G56: ANO | H56: ANO | I56: 365 | J56: ANO | L56: 588 | M56: ANO | N56: ANO | O56: 1x denně 2 hladiny | P56: 2393 | Q56: ANO | R56: ANO | S56: Po - Pa, 1x denně 2 hladiny | T56: 1413 | U56: ANO | V56: ANO | W56: Po - Pa, 1x denně 2 hladiny | X56: 84 | Y56: ANO | Z56: 5906 | AA56: 47248
A57: Bílkovina celková v likvoru | B57: ANO | C57: 1x denně 2 hladiny na všech provozovaných analyzátorech | D57: ANO | E57: ANO | F57: 334 | G57: ANO | H57: ANO | I57: 365 | J57: ANO | L57: 112 | M57: ANO | Z57: 446 | AA57: 3568
A58: Prealbumin | B58: ANO | C58: 1x denně 2 hladiny na všech provozovaných analyzátorech | D58: ANO | E58: ANO | F58: 526 | G58: ANO | H58: ANO | I58: 365 | J58: ANO | L58: 216 | M58: ANO | Z58: 742 | AA58: 5936
A59: Albumin v séru a puktátu | B59: ANO | C59: 1x denně 2 hladiny na všech provozovaných analyzátorech | D59: ANO | E59: ANO | F59: 7661 | G59: ANO | H59: ANO | I59: 365 | J59: ANO | L59: 2340 | M59: ANO | N59: ANO | O59: 1x denně 2 hladiny | P59: 4525 | Q59: ANO | R59: ANO | S59: Po - Pa, 1x denně 2 hladiny | T59: 241 | U59: ANO | V59: ANO | W59: Po - Pa, 1x denně 2 hladiny | X59: 338 | Y59: ANO | Z59: 15105 | AA59: 120840
A60: Albumin v moči | B60: ANO | C60: 1x denně 2 hladiny na všech provozovaných analyzátorech | D60: ANO | E60: ANO | F60: 2592 | H60: ANO | I60: 365 | J60: ANO | L60: 2306 | M60: ANO | N60: ANO | O60: Po - Pa, 1x denně 2 hladiny | P60: 54 | Q60: ANO | V60: ANO | W60: Po - Pa, 1x denně 2 hladiny | X60: 3174 | Y60: ANO | Z60: 8126 | AA60: 65008
A61: Albumin v likvoru | C61: 1x denně 2 hladiny na všech provozovaných analyzátorech | D61: ANO | E61: ANO | F61: 7 | G61: ANO | H61: ANO | I61: 365 | J61: ANO | L61: 26 | M61: ANO | Z61: 33 | AA61: 264
A62: Haptoglobin | B62: ANO | C62: Po - Pa, 1x denně 2 hladiny na 1 provozovaném analyzátoru | D62: ANO | F62: 141 | Z62: 141 | AA62: 1128
A63: Transferin | B63: ANO | C63: Po - Pa, 1x denně 2 hladiny na 1 provozovaném analyzátoru | D63: ANO | F63: 2804 | H63: ANO | I63: pracovní dny | J63: ANO | L63: 540 | N63: ANO | O63: 1x denně 2 hladiny | P63: 531 | Q63: ANO | R63: ANO | S63: Po - Pa, 1x denně 2 hladiny | T63: 325 | U63: ANO | V63: ANO | W63: Po - Pa, 1x denně 2 hladiny | X63: 168 | Y63: ANO | Z63: 4368 | AA63: 34944
A64: Solubilní transferinový receptor | B64: ANO | C64: Po - Pa, 1x denně 2 hladiny na 1 provozovaném analyzátoru | D64: ANO | F64: 318 | H64: ANO | I64: pracovní dny | J64: ANO | L64: 421 | Z64: 739 | AA64: 5912
A65: C3 složka komplementu | B65: ANO | C65: Po - Pa, 1x denně 2 hladiny na 1 provozovaném analyzátoru | D65: ANO | F65: 82 | H65: ANO | I65: pracovní dny | J65: ANO | L65: 32 | Z65: 114 | AA65: 912
A66: C4 složka komplementu | B66: ANO | C66: Po - Pa, 1x denně 2 hladiny na 1 provozovaném analyzátoru | D66: ANO | F66: 95 | H66: ANO | I66: pracovní dny | J66: ANO | L66: 33 | Z66: 128 | AA66: 1024
A67: Beta-2-mikroglobulin | B67: ANO | C67: Po - Pa, 1x denně 2 hladiny na 1 provozovaném analyzátoru | D67: ANO | F67: 638 | H67: ANO | I67: pracovní dny | J67: ANO | L67: 78 | Z67: 716 | AA67: 5728
A68: IgG v séru | B68: ANO | C68: Po - Pa, 1x denně 2 hladiny na 1 provozovaném analyzátoru | D68: ANO | F68: 2155 | H68: ANO | I68: pracovní dny | J68: ANO | L68: 615 | V68: ANO | W68: Po - Pa, 1x denně 2 hladiny | X68: 219 | Y68: ANO | Z68: 2989 | AA68: 23912
A69: IgA v séru | B69: ANO | C69: Po - Pa, 1x denně 2 hladiny na 1 provozovaném analyzátoru | D69: ANO | F69: 1783 | H69: ANO | I69: pracovní dny | J69: ANO | L69: 631 | V69: ANO | W69: Po - Pa, 1x denně 2 hladiny | X69: 260 | Y69: ANO | Z69: =F69+L69+P69+T69+X69 -> 2674 | AA69: 21392
A70: IgM | B70: ANO | C70: Po - Pa, 1x denně 2 hladiny na 1 provozovaném analyzátoru | D70: ANO | F70: 1766 | H70: ANO | I70: pracovní dny | J70: ANO | L70: 612 | V70: ANO | W70: Po - Pa, 1x denně 2 hladiny | X70: 220 | Y70: ANO | Z70: 2598 | AA70: =Z70*8 -> 20784
A71: IgE | B71: ANO | C71: Po - Pa, 1x denně 2 hladiny na 1 provozovaném analyzátoru | D71: ANO | F71: 1420 | H71: ANO | I71: pracovní dny | J71: ANO | L71: 271 | Z71: 1691 | AA71: 13528
A72: C-reaktivní protein | B72: ANO | C72: 1x denně 2 hladiny na všech provozovaných analyzátorech | D72: ANO | E72: ANO | F72: 40700 | G72: ANO | H72: ANO | I72: 365 | J72: ANO | K72: ANO | L72: 29874 | M72: ANO | N72: ANO | O72: 1x denně 2 hladiny | P72: 15589 | Q72: ANO | R72: ANO | S72: Po - Pa, 1x denně 2 hladiny | T72: 4776 | V72: ANO | W72: Po - Pa, 1x denně 2 hladiny | X72: 3427 | Y72: ANO | Z72: 94366 | AA72: 754928
A73: Prokalcitonin | B73: ANO | C73: 1x denně 2 hladiny na všech provozovaných analyzátorech | D73: ANO | E73: ANO | F73: 2981 | G73: ANO | H73: ANO | I73: 365 | J73: ANO | L73: 279 | M73: ANO | Z73: 3260 | AA73: 26080
A74: Interleukin 6 | B74: ANO | C74: 1x denně 2 hladiny na všech provozovaných analyzátorech | D74: ANO | E74: ANO | F74: 171 | G74: ANO | H74: ANO | I74: 365 | J74: ANO | L74: 9 | M74: ANO | Z74: 180 | AA74: 1440
A75: Revmatoidní faktor v séru a punktátu | B75: ANO | C75: Po - Pa, 1x denně 2 hladiny na 1 provozovaném analyzátoru | D75: ANO | F75: 1828 | H75: ANO | I75: pracovní dny | J75: ANO | L75: 1083 | R75: ANO | S75: Po - Pa, 1x denně 2 hladiny | T75: 299 | V75: ANO | W75: Po - Pa, 1x denně 2 hladiny | X75: 217 | Z75: 3427 | AA75: 27416
A76: Antistreptolyzin O (ASLO) v séru a punktátu | B76: ANO | C76: Po - Pa, 1x denně 2 hladiny na 1 provozovaném analyzátoru | D76: ANO | F76: 1500 | H76: ANO | I76: pracovní dny | J76: ANO | L76: 692 | R76: ANO | S76: Po - Pa, 1x denně 2 hladiny | T76: 279 | V76: ANO | W76: Po - Pa, 1x denně 2 hladiny | X76: 244 | Z76: 2715 | AA76: 21720
A77: Glukóza v séru, plazmě, likvoru a punktátu | B77: ANO | C77: 1x denně 2 hladiny na všech provozovaných analyzátorech | D77: ANO | E77: ANO | F77: 123942 | G77: ANO | H77: ANO | I77: 365 | J77: ANO | K77: ANO | L77: 40812 | M77: ANO | N77: ANO | O77: 1x denně 2 hladiny | P77: 30832 | Q77: ANO | R77: ANO | S77: Po - Pa, 1x denně 2 hladiny | T77: 12150 | V77: ANO | W77: Po - Pa, 1x denně 2 hladiny | X77: 10951 | Z77: 218687 | AA77: 1749496
A78: Glukóza v moči | B78: ANO | C78: 1x denně 2 hladiny na všech provozovaných analyzátorech | D78: ANO | E78: ANO | F78: 521 | G78: ANO | H78: ANO | I78: 365 | J78: ANO | L78: 388 | N78: ANO | O78: 1x denně 2 hladiny | P78: 2359 | Q78: ANO | R78: ANO | S78: Po - Pa, 1x denně 2 hladiny | T78: 1166 | V78: ANO | W78: Po - Pa, 1x denně 2 hladiny | X78: 4539 | Z78: 8973 | AA78: 71784
A79: Glukóza - hemolyzát | B79: ANO | C79: 1x denně 2 hladiny na všech provozovaných analyzátorech | D79: ANO | E79: ANO | F79: 1195 | G79: ANO | N79: ANO | O79: 1x denně 2 hladiny | P79: 19475 | Q79: ANO | R79: ANO | S79: Po - Pa, 1x denně 2 hladiny | T79: 1868 | V79: ANO | W79: Po - Pa, 1x denně 2 hladiny | X79: 2542 | Z79: 25080 | AA79: 200640
A80: Kyselina valproová | H80: ANO | I80: pracovní dny | J80: ANO | L80: 84 | M80: ANO | Z80: 84 | AA80: 672
A81: Carbamazepin | H81: ANO | I81: pracovní dny | J81: ANO | L81: 23 | M81: ANO | Z81: 23 | AA81: 184
A82: Digoxin | B82: ANO | C82: 1x denně 2 hladiny na všech provozovaných analyzátorech | D82: ANO | E82: ANO | F82: 498 | G82: ANO | H82: ANO | I82: 365 | L82: 769 | M82: ANO | N82: ANO | O82: 1x denně 2 hladiny | P82: 342 | Q82: ANO | Z82: 1609 | AA82: 12872
A83: Teofylin | B83: ANO | C83: 1x denně 2 hladiny na všech provozovaných analyzátorech | D83: ANO | E83: ANO | F83: 138 | G83: ANO | H83: ANO | I83: 365 | J83: ANO | L83: 193 | M83: ANO | N83: ANO | O83: 1x denně 2 hladiny | P83: 175 | Q83: ANO | Z83: 506 | AA83: 4048
A84: Gentamycin | B84: ANO | C84: 1x denně 2 hladiny na všech provozovaných analyzátorech | E84: ANO | F84: 107 | G84: ANO | H84: ANO | I84: 365 | J84: ANO | L84: 103 | M84: ANO | Z84: 210 | AA84: 1680
A85: Vankomycin | B85: ANO | C85: 1x denně 2 hladiny na všech provozovaných analyzátorech | E85: ANO | F85: 102 | G85: ANO | Z85: 102 | AA85: 816
A86: Etanol | B86: ANO | C86: 1x denně 2 hladiny na všech provozovaných analyzátorech | D86: ANO | E86: ANO | F86: 522 | G86: ANO | H86: ANO | I86: 365 | J86: ANO | L86: 710 | M86: ANO | N86: ANO | O86: 1x denně 2 hladiny | P86: 171 | Q86: ANO | Z86: 1403 | AA86: 11224
A87: Tyreotropin (TSH) | B87: ANO | C87: 1x denně 2 hladiny na všech provozovaných analyzátorech | D87: ANO | E87: ANO | F87: 20817 | H87: ANO | I87: 365 | J87: ANO | K87: ANO | L87: 12608 | M87: ANO | N87: ANO | O87: 1x denně 2 hladiny | P87: 14188 | Q87: ANO | R87: ANO | S87: Po - Pa, 1x denně 2 hladiny | T87: 6146 | U87: ANO | V87: ANO | W87: Po - Pa, 1x denně 2 hladiny | X87: 4865 | Y87: ANO | Z87: 58624 | AA87: 468992
A88: Trijodtyronin celkový (TT3) | H88: ANO | I88: pracovní dny | J88: ANO | L88: 129 | Z88: 129 | AA88: 1032
A89: Trijodtyronin volný (FT3) | B89: ANO | C89: 1x denně 2 hladiny na všech provozovaných analyzátorech | D89: ANO | E89: ANO | F89: 678 | H89: ANO | I89: pracovní dny | J89: ANO | L89: 1400 | N89: ANO | O89: 1x denně 2 hladiny | P89: 969 | Q89: ANO | V89: ANO | W89: Po - Pa, 1x denně 2 hladiny | X89: 1578 | Y89: ANO | Z89: 4625 | AA89: 37000
A90: Tyroxin volný (FT4) | B90: ANO | C90: 1x denně 2 hladiny na všech provozovaných analyzátorech | D90: ANO | E90: ANO | F90: 9939 | H90: ANO | I90: pracovní dny | J90: ANO | L90: 3213 | N90: ANO | O90: 1x denně 2 hladiny | P90: 7347 | Q90: ANO | R90: ANO | S90: Po - Pa, 1x denně 2 hladiny | T90: 2327 | U90: ANO | V90: ANO | W90: Po - Pa, 1x denně 2 hladiny | X90: 2130 | Y90: ANO | Z90: 24956 | AA90: 199648
A91: Thyreoglobulin | B91: ANO | C91: Po - Pa, 1x denně 2 hladiny na 1 provozovaném analyzátoru | D91: ANO | F91: 206 | H91: ANO | I91: 2x týdně | J91: ANO | L91: 71 | Z91: 277 | AA91: 2216
A92: Autoprotilátky proti mikrosomálnímu antigenu (Anti-TPO) | B92: ANO | C92: Po - Pa, 1x denně 2 hladiny na 1 provozovaném analyzátoru | D92: ANO | F92: 1695 | H92: ANO | I92: 2x týdně | J92: ANO | L92: 232 | M92: ANO | Z92: 1927 | AA92: 15416
A93: Autoprotilátky proti tyreoglobulinu (Anti-TG) | B93: ANO | C93: Po - Pa, 1x denně 2 hladiny na 1 provozovaném analyzátoru | D93: ANO | F93: 1404 | H93: ANO | I93: 2x týdně | J93: ANO | L93: 154 | Z93: 1558 | AA93: 12464
A94: Choriogonadotropin (HCG) | B94: ANO | C94: 1x denně 2 hladiny na všech provozovaných analyzátorech | D94: ANO | E94: ANO | F94: 791 | G94: ANO | H94: ANO | I94: 365 | J94: ANO | L94: 477 | M94: ANO | V94: ANO | W94: Po - Pa, 1x denně 2 hladiny | X94: 51 | Y94: ANO | Z94: 1319 | AA94: 10552
A95: Folitropin (FSH) | B95: ANO | C95: 2x týdně 2 hladiny na 1 provozovaném analyzátoru | D95: ANO | F95: 536 | H95: ANO | I95: 2x týdně | J95: ANO | L95: 105 | Z95: 641 | AA95: 5128
A96: Lutropin (LH) | B96: ANO | C96: 2x týdně 2 hladiny na 1 provozovaném analyzátoru | D96: ANO | F96: 454 | H96: ANO | I96: 2x týdně | J96: ANO | L96: 116 | Z96: 570 | AA96: 4560
A97: Prolaktin | B97: ANO | C97: 2x týdně 2 hladiny na 1 provozovaném analyzátoru | D97: ANO | F97: 521 | H97: ANO | I97: 2x týdně | J97: ANO | L97: 185 | Z97: 706 | AA97: 5648
A98: Estradiol | B98: ANO | C98: 2x týdně 2 hladiny na 1 provozovaném analyzátoru | D98: ANO | F98: 331 | H98: ANO | I98: 2x týdně | J98: ANO | L98: 69 | M98: ANO | Z98: 400 | AA98: 3200
A99: Progesteron | B99: ANO | C99: 1x denně 2 hladiny na 1 provozovaném analyzátoru | D99: ANO | E99: ANO | F99: 220 | H99: ANO | I99: 2x týdně | J99: ANO | L99: 159 | Z99: 379 | AA99: 3032
A100: Testosteron celkový | B100: ANO | C100: Po - Pa, 1x denně 2 hladiny na 1 provozovaném analyzátoru | D100: ANO | F100: 471 | H100: ANO | I100: 2x týdně | J100: ANO | L100: 213 | Z100: 684 | AA100: 5472
A101: Sex hormone binding globulin (SHBG) | B101: ANO | C101: Po - Pa, 1x denně 2 hladiny na 1 provozovaném analyzátoru | D101: ANO | F101: 136 | H101: ANO | I101: 2x týdně | J101: ANO | L101: 50 | Z101: =F101+L101+P101+T101+X101 -> 186 | AA101: 1488
A102: Kortizol v séru | B102: ANO | C102: 2x týdně 2 hladiny na 1 provozovaném analyzátoru | D102: ANO | F102: 545 | H102: ANO | I102: 2x týdně | J102: ANO | L102: 138 | Z102: 683 | AA102: 5464
A103: Kortizol v moči | B103: ANO | C103: 2x týdně 2 hladiny na 1 provozovaném analyzátoru | D103: ANO | F103: 44 | H103: ANO | I103: 2x týdně | J103: ANO | L103: 19 | Z103: 63 | AA103: 504
A104: Spojovací peptid proinzulinu (C-peptid) | B104: ANO | C104: 2x týdně 2 hladiny na 1 provozovaném analyzátoru | D104: ANO | F104: 677 | H104: ANO | I104: 2x týdně | J104: ANO | L104: 219 | Z104: 896 | AA104: 7168
A105: Prostatický specifický antigen (PSA) | B105: ANO | C105: Po - Pa, 1x denně 2 hladiny na 1 provozovaném analyzátoru | D105: ANO | F105: 5731 | H105: ANO | I105: pracovní dny | J105: ANO | K105: ANO | L105: 4312 | N105: ANO | O105: 1x denně 2 hladiny | P105: 2503 | R105: ANO | S105: Po - Pa, 1x denně 2 hladiny | T105: 1957 | V105: ANO | W105: Po - Pa, 1x denně 2 hladiny | X105: 1356 | Z105: 15859 | AA105: 126872
A106: Prostatický specifický antigen (PSA) - volný | B106: ANO | C106: Po - Pa, 1x denně 2 hladiny na 1 provozovaném analyzátoru | D106: ANO | F106: 961 | H106: ANO | I106: pracovní dny | J106: ANO | K106: ANO | L106: 1574 | N106: ANO | O106: 1x denně 2 hladiny | P106: 628 | R106: ANO | S106: Po - Pa, 1x denně 2 hladiny | T106: 818 | V106: ANO | W106: Po - Pa, 1x denně 2 hladiny | X106: 290 | Z106: 4271 | AA106: 34168
A107: Alfa-1-fetoprotein (AFP) | B107: ANO | C107: Po - Pa, 1x denně 2 hladiny na 1 provozovaném analyzátoru | D107: ANO | F107: 697 | H107: ANO | I107: pracovní dny | J107: ANO | L107: 429 | Z107: 1126 | AA107: 9008
A108: Karcinoembryonalni antigen (CEA) v séru a punktátu | B108: ANO | C108: Po - Pa, 1x denně 2 hladiny na 1 provozovaném analyzátoru | D108: ANO | F108: 3339 | H108: ANO | I108: pracovní dny | J108: ANO | L108: 991 | Z108: 4330 | AA108: 34640
A109: Carbohydrate antigen 15-3 | B109: ANO | C109: Po - Pa, 1x denně 2 hladiny na 1 provozovaném analyzátoru | D109: ANO | F109: 1286 | H109: ANO | I109: pracovní dny | J109: ANO | L109: 176 | Z109: 1462 | AA109: 11696
A110: Carbohydrate antigen 19-9 | B110: ANO | C110: Po - Pa, 1x denně 2 hladiny na 1 provozovaném analyzátoru | D110: ANO | F110: 2153 | H110: ANO | I110: pracovní dny | J110: ANO | L110: 1029 | Z110: 3182 | AA110: 25456
A111: Carbohydrate antigen 125 | B111: ANO | C111: Po - Pa, 1x denně 2 hladiny na 1 provozovaném analyzátoru | D111: ANO | F111: 838 | H111: ANO | I111: pracovní dny | J111: ANO | L111: 314 | Z111: 1152 | AA111: 9216
A112: Feritin | B112: ANO | C112: Po - Pa, 1x denně 2 hladiny na 1 provozovaném analyzátoru | D112: ANO | F112: 3831 | G112: ANO | H112: ANO | I112: 365 | J112: ANO | K112: ANO | L112: 2144 | Z112: 5975 | AA112: 47800
A113: Parathormon intaktní | B113: ANO | C113: Po - Pa, 1x denně 2 hladiny na 1 provozovaném analyzátoru | D113: ANO | F113: 4272 | J113: ANO | Z113: 4272 | AA113: 34176
A114: 25-hydroxyvitamin D | B114: ANO | C114: 1x denně 2 hladiny na všech provozovaných analyzátorech | D114: ANO | E114: ANO | F114: 3093 | G114: ANO | H114: ANO | I114: pracovní dny | J114: ANO | L114: 1579 | Z114: 4672 | AA114: 37376
A115: Laktát v plazmě | B115: ANO | C115: 1x denně 2 hladiny na všech provozovaných analyzátorech | D115: ANO | E115: ANO | F115: 892 | G115: ANO | H115: ANO | I115: 365 | J115: ANO | L115: 1237 | M115: ANO | N115: ANO | O115: 1x denně 2 hladiny | P115: 232 | Z115: 2361 | AA115: 18888
A116: Laktát v likvoru, puktátu | B116: ANO | C116: 1x denně 2 hladiny na všech provozovaných analyzátorech | D116: ANO | E116: ANO | F116: 337 | G116: ANO | H116: ANO | I116: 365 | J116: ANO | L116: 48 | M116: ANO | Z116: 385 | AA116: 3080
A117: Amoniak | H117: ANO | I117: 365 | J117: ANO | L117: 78 | M117: ANO | Z117: 78 | AA117: 624
A118: Hemoglobin ve stolici | H118: ANO | I118: pracovní dny | J118: ANO | L118: 155 | Z118: 155 | AA118: 1240
A119: Sérové indexy | B119: ANO | C119: 1x za půl roku na všech provozovaných analyzátorech | D119: ANO | E119: ANO | F119: 93354 | J119: ANO | K119: ANO | N119: ANO | O119: 1x za půl roku | P119: 32147 | R119: ANO | S119: 1x za půl roku | T119: 15893 | V119: ANO | W119: 1x za půl roku | X119: 15978 | Z119: 157372 | AA119: 1258976
A120: Anti HAV IgG+IgM | H120: ANO | I120: 2x týdně | J120: ANO | L120: 338 | Z120: 338 | AA120: 2704
A121: Anti HAV IgM | H121: ANO | I121: 2x týdně | J121: ANO | L121: 134 | Z121: 134 | AA121: 1072
A122: HBsAg (Australský antigen) | H122: ANO | I122: 2x týdně | J122: ANO | L122: 693 | Z122: 693 | AA122: 5544
A123: Anti HBs | H123: ANO | I123: 2x týdně | J123: ANO | L123: 505 | Z123: 505 | AA123: 4040
A124: Anti HBc IgG +IgM | H124: ANO | I124: 2x týdně | J124: ANO | L124: 442 | Z124: 442 | AA124: 3536
A125: Anti HBc IgM | H125: ANO | I125: 2x týdně | J125: ANO | L125: 38 | Z125: 38 | AA125: 304
A126: Anti HBc IgM | H126: ANO | I126: 2x týdně | J126: ANO | L126: 38 | Z126: 38 | AA126: 304
A127: HIV-1 (protilátky) | H127: ANO | I127: 2x týdně | J127: ANO | L127: 445 | Z127: 445 | AA127: 3560
A128: Ab/Toxoplazma IgG kvant. | H128: ANO | I128: 2x týdně | J128: ANO | L128: 86 | Z128: 86 | AA128: 688
A129: Ab/Toxopl.IgM | H129: ANO | I129: 2x týdně | J129: ANO | L129: 86 | Z129: 86 | AA129: 688
A130: Ab/SARS-COV-2-IgG | H130: ANO | J130: ANO | L130: 700 | M130: ANO | Z130: 700 | AA130: =Z130*8 -> 5600
A132: Nepovinné reportované testy - část 2.
A133: Označení reportovaného testu | B133: Pracoviště Náchod | C133: Frekvence IKK | D133: Hlavní modul | E133: Záložní (Statim modul) | F133: Počet vzorků | G133: Statim | H133: Pracoviště Rychnov n/K | I133: Frekvence IKK | J133: Hlavní modul | K133: Záložní modul | L133: Počet vzorků | M133: Statim | N133: CELKEM počet vzorků za všechny lokality/ 1 rok | P133: Celkem počet reportovaných testů za všechny lokality/ 8 let | Q133: délka trvání vyšetření Statim | R133: možné velikosti balení/počet testů | T133: pipetovaný objem vzorku (ul) | U133: stabilita reagencie na palubě analyzátoru (dny) | V133: doporučený interval kalibrace, stabilita kalibrace (dny) | X133: reagencie připravené k použití (ANO/NE) | Y133: kalibrační materál připravený k použití (ANO/NE) | Z133: kontrolní materiál připravený k použití (ANO/NE) | AA133: reagencie označené RFID (ANO/NE) | AB133: kalibrační materál označený RFID (ANO/NE) | AC133: kontrolní materiál označený RFID (ANO/NE) | AD133: V portfoliu ANO/NE
A134: ELF score (Enhanced Liver Fibrosis) | B134: ANO | C134: Po - Pa, 1x denně 2 hladiny na 1 provozovaném analyzátoru | D134: ANO | F134: 129 | N134: =F134+L134 -> 129 | P134: =N134*8 -> 1032
A135: Eozinofilní kationový protein (ECP) | B135: ANO | C135: 2x týdně 2 hladiny na 1 provozovaném analyzátoru | D135: ANO | F135: 372 | N135: 372 | P135: =N135*8 -> 2976
A136: Anti-CCP | H136: ANO | I136: pracovní dny | J136: ANO | K136: ANO | L136: 325 | N136: 325 | P136: 2600
A137: TSI (TSH receptor Stimulating Imunoglobulins) | B137: ANO | C137: Po - Pa, 1x denně 2 hladiny na 1 provozovaném analyzátoru | D137: ANO | F137: 364 | N137: 364 | P137: 2912
A138: Preeklampsie | B138: ANO | E138: ANO | F138: 148 | G138: ANO | N138: 148 | P138: 1184
A139: HE4 (Human Epididymal protein 4) | B139: ANO | C139: Po - Pa, 1x denně 2 hladiny na 1 provozovaném analyzátoru | D139: ANO | F139: 105 | N139: 105 | P139: 840
A140: Carbohydrate antigen 125* | B140: ANO | C140: Po - Pa, 1x denně 2 hladiny na 1 provozovaném analyzátoru | D140: ANO | F140: 105 | K140: ANO | N140: 105 | P140: =N140*8 -> 840
A141: ROMA score | B141: ANO | C141: Po - Pa, 1x denně 2 hladiny na 1 provozovaném analyzátoru | D141: ANO | F141: 102 | N141: =F141+L141 -> 102 | P141: 816
A142: SCC antigen | H142: ANO | I142: 2x týdně | J142: ANO | K142: ANO | L142: 21 | N142: =F142+L142 -> 21 | P142: 168
A143: Cytokeratin fragment 21-1 (CYFRA) v séru a punktátu | B143: ANO | C143: Po - Pa, 1x denně 2 hladiny na 1 provozovaném analyzátoru | D143: ANO | F143: 363 | H143: ANO | I143: 2x týdně | J143: ANO | K143: ANO | L143: 17 | N143: =F143+L143 -> 380 | P143: 3040
A144: Carbohydrate antigen 72-4 | B144: ANO | C144: Po - Pa, 1x denně 2 hladiny na 1 provozovaném analyzátoru | D144: ANO | F144: 1013 | H144: ANO | I144: pracovní dny | J144: ANO | K144: ANO | L144: 139 | N144: =F144+L144 -> 1152 | P144: 9216
A145: proPSA | H145: ANO | I145: pracovní dny | J145: ANO | K145: ANO | L145: 78 | N145: =L145 -> 78 | P145: =N145*8 -> 624
A146: NSE | B146: ANO | C146: Po - Pa, 1x denně 2 hladiny na 1 provozovaném analyzátoru | D146: ANO | F146: 322 | H146: ANO | I146: 2x týdně | J146: ANO | K146: ANO | L146: 26 | N146: =F146+L146 -> 348 | P146: 2784
A147: ALP-kostní (osteáza) | H147: ANO | I147: 1x týdně | J147: ANO | K147: ANO | L147: 23 | N147: 23 | P147: 184
A148: Osteokalcin | B148: ANO | C148: Po - Pa, 1x denně 2 hladiny na 1 provozovaném analyzátoru | D148: ANO | F148: 2031 | H148: ANO | I148: 2x týdně | J148: ANO | K148: ANO | L148: 32 | N148: 2063 | P148: 16504
A149: Beta-CrossLaps | B149: ANO | C149: Po - Pa, 1x denně 2 hladiny na 1 provozovaném analyzátoru | D149: ANO | F149: 1854 | I149: 2x týdně | K149: ANO | N149: 1854 | P149: 14832
A150: Prokolagen typ I (Propeptid prokolagenu I) | B150: ANO | C150: Po - Pa, 1x denně 2 hladiny na 1 provozovaném analyzátoru | D150: ANO | F150: 608 | I150: 2x týdně | K150: ANO | N150: 608 | P150: 4864
A151: Adrenokortikotropin (ACTH) | B151: ANO | C151: Po - Pa, 1x denně 2 hladiny na 1 provozovaném analyzátoru | D151: ANO | F151: 82 | H151: ANO | I151: 2x týdně | J151: ANO | K151: ANO | L151: 65 | N151: 147 | P151: 1176
A152: Ab/Treponema screen | H152: ANO | J152: ANO | K152: ANO | L152: 860 | N152: 860 | P152: 6880
A153: CMV avidita | H153: ANO | J153: ANO | K153: ANO | L153: 10 | N153: 10 | P153: =N153*8 -> 80
A154: Specifické IgE proti: trávy I (směs) | B154: ANO | C154: 2x týdně 2 hladiny na 1 provozovaném analyzátoru | D154: ANO | F154: 104 | N154: 104 | P154: 832
A155: Specifické IgE proti: směs roztoči | B155: ANO | C155: 2x týdně 2 hladiny na 1 provozovaném analyzátoru | D155: ANO | F155: 237 | N155: 237 | P155: 1896
A156: Specifické IgE proti: směs plísně | B156: ANO | C156: 2x týdně 2 hladiny na 1 provozovaném analyzátoru | D156: ANO | F156: 34 | N156: 34 | P156: 272
A157: Specifické IgE proti: směs stromy 9 | B157: ANO | C157: 2x týdně 2 hladiny na 1 provozovaném analyzátoru | D157: ANO | F157: 108 | N157: 108 | P157: 864
A158: Specifické IgE proti: kočka - srst | B158: ANO | C158: 2x týdně 2 hladiny na 1 provozovaném analyzátoru | D158: ANO | F158: 51 | N158: 51 | P158: 408
A159: Specifické IgE proti: pes - epitelie | B159: ANO | C159: 2x týdně 2 hladiny na 1 provozovaném analyzátoru | D159: ANO | F159: 43 | N159: 43 | P159: 344
A160: Specifické IgE proti: vaječný bílek | B160: ANO | C160: 2x týdně 2 hladiny na 1 provozovaném analyzátoru | D160: ANO | F160: 61 | N160: 61 | P160: 488
A161: Specifické IgE proti: mléko kravské | B161: ANO | C161: 2x týdně 2 hladiny na 1 provozovaném analyzátoru | D161: ANO | F161: 137 | N161: 137 | P161: 1096
A162: Specifické IgE proti: mouka pšeničná | B162: ANO | C162: 2x týdně 2 hladiny na 1 provozovaném analyzátoru | D162: ANO | F162: 86 | N162: 86 | P162: 688
A163: Specifické IgE proti: vaječný žloutek | B163: ANO | C163: 2x týdně 2 hladiny na 1 provozovaném analyzátoru | D163: ANO | F163: 39 | N163: 39 | P163: 312
A164: Specifické IgE proti: gluten - lepek | B164: ANO | C164: 2x týdně 2 hladiny na 1 provozovaném analyzátoru | D164: ANO | F164: 80 | N164: 80 | P164: 640
A165: Specifické IgE proti: včela medonosná | B165: ANO | C165: 2x týdně 2 hladiny na 1 provozovaném analyzátoru | D165: ANO | F165: 30 | N165: 30 | P165: 240
A166: Specifické IgE proti: vosa obecná | B166: ANO | C166: 2x týdně 2 hladiny na 1 provozovaném analyzátoru | D166: ANO | F166: 34 | N166: 34 | P166: 272
A167: Specifické IgE proti: Aspergillus fumigatus | B167: ANO | C167: 2x týdně 2 hladiny na 1 provozovaném analyzátoru | D167: ANO | F167: 17 | N167: 17 | P167: 136
A168: Specifické IgE proti: Alternaria tenui | B168: ANO | C168: 2x týdně 2 hladiny na 1 provozovaném analyzátoru | D168: ANO | F168: 34 | N168: 34 | P168: 272
A169: Specifické IgE proti: pyl pelyněk černobýl (Artemisia vulgaris) | B169: ANO | C169: 2x týdně 2 hladiny na 1 provozovaném analyzátoru | D169: ANO | F169: 12 | N169: 12 | P169: =N169*8 -> 96
A170: Ab/CMV IgG kvantit. | H170: ANO | I170: 2x týdně | J170: ANO | K170: ANO | L170: 215 | N170: 215 | P170: 1720
A171: Ab/CMV IgM | H171: ANO | I171: 2x týdně | J171: ANO | K171: ANO | L171: 215 | N171: 215 | P171: 1720
A172: HCV (Ag/Ab) | H172: ANO | I172: 2x týdně | J172: ANO | K172: ANO | L172: 511 | N172: 511 | P172: 4088
B175: Počet požadovaných metod - Pracoviště Náchod | C175: Počet požadovaných metod - Pracoviště Rychnov n/K | E175: Počet požadovaných metod - Pracoviště Broumov | G175: Počet požadovaných metod - Pracoviště Jaroměř | I175: Počet požadovaných metod - Pracoviště Opočno | J175: Délka trvání nejdelšího požadovaného vyšetření | L175: Možné velikosti balení/počet testů | M175: Počet metod s pipetovaným objemem větším než 50 ul | N175: Počet metod se stabilitou na palubě analyzátoru kratší než 14 dní | O175: Počet metod se stabilitou kalibrace kratší než 7 dní | P175: Počet metod, které vyžadují manuální přípravu (včetně ředění lyofilizovaného materiálu) | Q175: Počet metod, pro které je potřeba manuální příprava kalibračního materiálu (včetně ředění lyofilizovaného materiálu) | S175: Počet metod, pro které je potřeba manuální příprava kontrolního materiálu (včetně ředění lyofilizovaného materiálu) | U175: Počet diagnostik, které jsou označeny RFID
A176: Náchod | B176: =COUNTIF(B5:B130,"ANO") -> 103
A177: Rychnov nad Kněžnou | C177: =COUNTIF(H5:H130,"ANO") -> 118
A178: Broumov | E178: =COUNTIF(N5:N130,"ANO") -> 56
A179: Jaroměř | G179: =COUNTIF(R5:R130,"ANO") -> 45
A180: Opočno | I180: =COUNTIF(V5:V130,"ANO") -> 55
A183: Příslušenství, ostatní spotřební a provozní materiál
A184: Účastník doplní veškerý spotřební materiál pro potřebný pro provedení reportovaných testů dle požadavků zadavatele (tato tabulka bude tvořit neoddělitenou přílohu č. 3 Rámcové kupní smlouvy) | B184: Nabízený materiál (obchodní název) | C184: Analytický systém | D184: Dodavatel | E184: Velikost balení | F184: Katalogové / objednací číslo
A185: Další reagencie potřebné pro požadovaná vyšetření (specifické promývací roztoky, diluenty, pyridoxal-6-fosfát apod.)
A227: Kalibrační materiály
A270: Kontrolní materiály
A302: Příslušenství, ostatní spotřební a provozní materiál
